bitfinex/quotes_ETHUSD_20240730
["timestamp","ask_amount","ask_price","bid_price","bid_amount"]
[1722371527159,0.64224178,3275.1,3274.6,0.91475]
[1722371527479,2.78670692,3275.5,3274.6,0.91475]
[1722371527772,0.64182769,3275.4,3274.7,1.006225]
[1722371527977,0.64182769,3275.3,3274.6,3.0]
[1722371528180,2.23670692,3275.4,3274.5,9.1475]
[1722371528181,1.19182769,3275.2,3274.5,2.3475]
[1722371528476,0.64182769,3275.1,3274.5,2.3475]
[1722371528686,0.64182769,3275.0,3274.5,2.3475]
[1722371528891,0.64182769,3274.9,3274.5,2.3475]
[1722371529072,2.78670692,3275.2,3274.5,2.3475]
[1722371529273,0.64166345,3275.1,3274.5,2.3475]
[1722371529596,0.55,3275.2,3274.5,2.3475]
[1722371529597,0.64166345,3275.0,3274.5,2.3475]
[1722371529737,0.64166345,3274.9,3274.5,2.3475]
[1722371529937,0.64155563,3274.8,3274.5,2.3475]
[1722371530144,2.23499377,3275.0,3274.5,2.3475]
[1722371530384,0.64147149,3274.9,3274.5,2.58225]
[1722371530593,2.23499377,3275.3,3274.5,2.58225]
[1722371530792,3.3375848,3275.2,3274.5,2.58225]
[1722371530981,10.03008639,3275.6,3274.5,2.58225]
[1722371530982,0.64130988,3275.1,3274.5,2.58225]
[1722371531177,2.23499377,3275.3,3274.5,2.58225]
[1722371531484,0.64134665,3275.2,3274.6,0.258225]
[1722371531796,0.64134665,3275.1,3274.5,2.3475]
[1722371531949,0.64134665,3275.0,3274.5,2.3475]
[1722371532146,2.23499377,3275.3,3274.5,2.3475]
[1722371532347,2.23499377,3275.6,3274.6,0.0610709]
[1722371532664,2.23499377,3275.9,3274.7,0.24085709]
[1722371532862,3.33762261,3275.8,3274.8,0.06106426]
[1722371533049,3.33762261,3275.7,3274.8,0.06106426]
[1722371533385,0.64144354,3275.6,3274.8,0.06106426]
[1722371533688,2.23435544,3276.0,3274.8,0.3912564]
[1722371533896,7.8421957,3276.2,3274.9,2.2602]
[1722371533897,0.64160134,3275.9,3274.9,2.2602]
[1722371534096,9.62435544,3276.2,3275.1,2.2602]
[1722371534245,2.87588352,3276.1,3275.1,2.2602]
[1722371534451,0.64152808,3276.0,3275.1,2.2602]
[1722371534685,0.64152808,3275.9,3275.1,2.2602]
[1722371534944,9.62435544,3276.2,3275.2,0.55253456]
[1722371535172,0.64165793,3276.1,3275.2,0.55253456]
[1722371535380,0.64165793,3276.0,3275.2,0.55253456]
[1722371535585,0.64165793,3275.9,3275.3,0.06105349]
[1722371535810,12.9321957,3276.7,3275.3,0.06105349]
[1722371535811,2.23435544,3276.4,3275.3,0.06105349]
[1722371536011,0.64161102,3276.3,3275.4,0.3613588]
[1722371536337,0.64161102,3276.2,3275.4,0.3613588]
[1722371536486,2.23378867,3276.0,3275.1,2.2602]
[1722371536837,0.64161102,3275.9,3275.2,0.06106667]
[1722371536983,0.64161102,3275.8,3275.3,0.23212667]
[1722371537185,0.64161102,3275.7,3275.1,2.2602]
[1722371537488,2.23378867,3276.0,3275.1,2.2602]
[1722371537704,0.64164126,3275.9,3275.1,2.2602]
[1722371537915,0.64164126,3275.8,3275.1,2.2602]
[1722371538115,0.64164126,3275.7,3275.1,2.2602]
[1722371538428,0.64164126,3275.6,3275.1,2.2602]
[1722371538727,2.23378867,3275.8,3275.1,2.48622]
[1722371538932,0.64137609,3275.7,3275.1,2.48622]
[1722371539135,2.23378867,3276.0,3275.2,0.06106329]
[1722371539332,0.64127763,3275.9,3275.2,0.06106329]
[1722371539541,6.7207794,3276.6,3275.2,0.06106329]
[1722371539542,0.64127763,3275.8,3275.2,0.06106329]
[1722371539833,3.05204,3276.5,3275.2,0.06106329]
[1722371539834,0.64132195,3275.7,3275.2,0.06106329]
[1722371540031,2.23317101,3275.9,3275.2,0.06106329]
[1722371540196,0.64138494,3275.8,3275.3,0.23212633]
[1722371540402,3.0,3276.4,3275.3,0.23212633]
[1722371540403,2.23317101,3276.2,3275.3,0.23212633]
[1722371540587,3.42453843,3276.1,3275.3,0.23212633]
[1722371540786,0.64136742,3276.0,3275.3,0.23212633]
[1722371541429,0.64136742,3276.0,3275.3,0.29318456]
[1722371541647,2.23317101,3276.5,3275.4,2.4082]
[1722371541795,0.64145157,3276.4,3275.5,0.33118446]
[1722371542127,2.23317101,3276.7,3275.5,3.33118446]
[1722371542334,0.64150828,3276.6,3275.5,3.33118446]
[1722371542488,0.64150828,3276.5,3275.6,1.25393845]
[1722371542844,2.23407651,3276.7,3275.7,0.06104683]
[1722371542983,0.64172642,3276.6,3275.7,0.06104683]
[1722371543214,2.23396693,3276.7,3275.6,1.25393845]
[1722371543215,0.64172642,3276.5,3275.6,1.25393845]
[1722371543546,0.64172642,3276.5,3275.4,9.2082]
[1722371543547,0.64172642,3276.4,3275.4,9.2082]
[1722371543716,2.23406333,3276.3,3275.4,9.2082]
[1722371543923,0.64172642,3276.2,3275.5,0.0610491]
[1722371544229,2.23406333,3276.6,3275.5,1.01118664]
[1722371544440,0.6419671,3276.5,3275.5,1.01118664]
[1722371544616,0.6419671,3276.4,3275.5,1.01118664]
[1722371544819,2.23405503,3276.6,3275.6,1.02193866]
[1722371545124,0.641746,3276.5,3275.7,0.06104594]
[1722371545322,0.641746,3276.4,3275.7,0.06104594]
[1722371545526,0.64175326,3276.3,3275.7,0.06104594]
[1722371545749,2.23405503,3276.6,3275.7,0.06104594]
[1722371545951,0.64182761,3276.5,3275.7,0.4693444]
[1722371546261,0.64182761,3276.4,3275.7,0.4693444]
[1722371546469,2.23375802,3276.6,3275.7,0.4693444]
[1722371546470,0.64180386,3276.3,3275.7,0.06104594]
[1722371546637,2.23375802,3276.6,3275.7,0.06104594]
[1722371546832,0.64177217,3276.5,3275.7,0.06104594]
[1722371547042,2.23375802,3276.7,3275.7,0.06104594]
[1722371547241,3.33599635,3276.6,3275.7,0.4693444]
[1722371547568,0.64156049,3276.5,3275.7,0.4693444]
[1722371547716,0.64156049,3276.4,3275.7,0.4693444]
[1722371547920,2.23375802,3276.7,3275.7,0.4693444]
[1722371548135,0.64130092,3276.6,3275.7,0.4693444]
[1722371548348,0.64130092,3276.5,3275.7,0.4693444]
[1722371548566,2.23375802,3276.7,3275.7,0.4693444]
[1722371548742,0.64143629,3276.6,3275.7,0.4693444]
[1722371548938,0.64143629,3276.5,3275.7,0.4693444]
[1722371549285,0.64141231,3276.4,3275.7,0.40829846]
[1722371549423,0.64141231,3276.3,3275.4,9.2082]
[1722371549626,2.23316301,3276.0,3275.4,9.2082]
[1722371549820,3.33529047,3275.9,3275.4,2.4082]
[1722371550124,0.64141231,3275.8,3275.4,2.4082]
[1722371550329,0.64141231,3275.7,3275.4,2.4082]
[1722371550634,0.64141231,3275.6,3275.4,2.4082]
[1722371550851,2.23316301,3275.9,3275.0,5.3113]
[1722371551050,1.19117241,3275.8,3275.0,2.3113]
[1722371551368,0.64117241,3275.7,3275.0,2.3113]
[1722371551677,0.64117241,3275.6,3275.0,2.54243]
[1722371551882,0.64106039,3275.5,3275.0,2.3113]
[1722371552186,0.64106039,3275.4,3274.5,6.8]
[1722371552401,1.19106039,3275.3,3274.6,2.3113]
[1722371552600,0.64106039,3275.2,3274.6,2.3113]
[1722371552753,10.02656438,3275.7,3274.6,2.3113]
[1722371552754,2.23201217,3275.5,3274.6,2.3113]
[1722371552943,0.64082232,3275.4,3274.6,2.3113]
[1722371553295,2.23201217,3275.6,3274.7,0.23113]
[1722371553441,0.64088889,3275.5,3274.7,0.23113]
[1722371553781,0.64088889,3275.4,3274.7,0.23113]
[1722371553993,7.39,3275.7,3274.8,0.06106661]
[1722371554194,0.64082025,3275.6,3274.8,0.26034966]
[1722371554349,7.39,3275.7,3274.8,0.26034966]
[1722371554350,0.64077833,3275.5,3274.8,0.26034966]
[1722371554552,9.62201217,3275.7,3274.8,0.26034966]
[1722371554759,0.64068023,3275.6,3275.0,2.3084]
[1722371554963,7.39,3275.7,3275.1,0.23694619]
[1722371555296,7.39,3275.7,3275.0,2.3084]
[1722371555297,0.6404701,3275.6,3275.0,2.3084]
[1722371555438,1.1904701,3275.5,3274.0,6.94878339]
[1722371555792,1.1904701,3275.5,3274.1,2.3084]
[1722371555793,0.6404701,3275.4,3274.1,2.3084]
[1722371556096,0.46041056,3275.4,3274.1,2.3084]
[1722371556261,0.55,3275.5,3274.1,2.3084]
[1722371556262,0.64056436,3275.3,3274.1,2.3084]
[1722371556464,0.55,3275.5,3274.2,0.91084]
[1722371556465,0.64052062,3275.2,3274.2,0.91084]
[1722371556655,0.64052062,3275.1,3274.2,0.91084]
[1722371556850,0.64049409,3275.0,3274.2,0.91084]
[1722371557200,0.55,3275.5,3274.3,0.321924]
[1722371557201,2.23077139,3275.4,3274.3,0.321924]
[1722371557409,1.19009264,3275.3,3274.3,0.321924]
[1722371557695,0.55,3275.5,3274.3,0.321924]
[1722371557907,0.63992863,3275.4,3274.3,0.321924]
[1722371558210,1.18992863,3275.3,3274.4,0.4232764]
[1722371558414,0.63980211,3275.2,3274.4,0.4232764]
[1722371558584,0.55,3275.3,3274.4,0.4232764]
[1722371558783,0.63983995,3275.2,3274.4,0.4232764]
[1722371558991,0.63983995,3275.1,3274.4,0.4232764]
[1722371559320,2.86909042,3275.0,3274.2,3.0]
[1722371559478,3.32935445,3274.9,3274.1,2.3084]
[1722371559799,0.63983995,3274.8,3274.1,2.3084]
[1722371560132,0.63983995,3274.7,3274.1,2.3084]
[1722371560306,0.63983995,3274.6,3274.1,2.3084]
[1722371560625,2.22925047,3274.8,3274.1,2.3084]
[1722371560768,0.63974266,3274.7,3274.1,2.3084]
[1722371560971,0.63974266,3274.6,3274.1,2.3084]
[1722371561220,2.22925047,3274.7,3274.1,2.3084]
[1722371561365,0.49439187,3274.6,3274.1,2.3084]
[1722371561571,0.49439187,3274.5,3274.1,2.3084]
[1722371561815,2.22925047,3274.7,3274.1,2.3084]
[1722371562075,0.49432003,3274.6,3273.6,5.4163]
[1722371562232,0.49432003,3274.5,3273.6,3.63793]
[1722371562396,0.55,3274.6,3273.6,3.63793]
[1722371562597,2.22824605,3274.8,3273.7,0.06108772]
[1722371562821,0.49438311,3274.7,3273.8,0.43098586]
[1722371563007,2.22824605,3275.1,3273.9,2.4163]
[1722371563209,0.49443587,3275.0,3274.0,0.06107747]
[1722371563486,0.49450969,3274.9,3274.0,0.06107747]
[1722371563846,0.49454547,3274.8,3274.0,0.06107747]
[1722371563988,2.22824605,3275.0,3274.1,3.04901288]
[1722371564328,0.49464041,3274.9,3274.2,0.06107746]
[1722371564524,7.39,3275.2,3274.2,0.06107746]
[1722371564525,0.49464041,3274.8,3274.2,0.06107746]
[1722371564745,2.22824605,3275.1,3274.1,2.4163]
[1722371565036,2.22824605,3275.3,3274.2,0.2723]
[1722371565190,2.72315134,3275.2,3274.2,0.2723]
[1722371565385,0.49490529,3275.1,3274.2,3.2723]
[1722371565849,2.2315261,3275.0,3274.2,3.2723]
[1722371566059,0.49490529,3274.9,3274.2,3.2723]
[1722371566269,0.46054669,3275.0,3274.2,3.2723]
[1722371566447,0.49524179,3274.9,3274.2,3.2723]
[1722371566649,0.49524179,3274.8,3274.2,3.2723]
[1722371566854,0.49524179,3274.8,3274.1,2.4163]
[1722371567023,2.72676789,3274.8,3274.1,2.4163]
[1722371567229,3.18758824,3274.7,3274.1,2.4163]
[1722371567422,0.49524179,3274.6,3274.1,2.4163]
[1722371567671,2.2311075,3274.8,3274.1,2.4163]
[1722371567984,2.2311075,3274.5,3273.9,6.8]
[1722371568267,1.50571145,3274.7,3273.6,2.3277]
[1722371568268,2.23097397,3274.3,3273.6,2.3277]
[1722371568430,0.49500474,3274.2,3273.6,2.3277]
[1722371568639,0.49498429,3274.1,3273.6,2.3277]
[1722371568857,0.49498429,3274.0,3273.6,2.3277]
[1722371569036,2.23029249,3274.2,3273.6,2.3277]
[1722371569235,0.49504446,3274.1,3273.6,2.3277]
[1722371569601,3.18622236,3274.0,3273.0,6.8]
[1722371569721,3.18622236,3273.9,3273.0,6.8]
[1722371570064,3.27530576,3273.8,3273.0,7.72037]
[1722371570274,0.49501327,3273.7,3273.0,7.72037]
[1722371570473,0.55,3273.8,3273.0,7.72037]
[1722371570776,2.78029249,3274.0,3273.0,7.72037]
[1722371570954,0.49455577,3273.9,3273.0,7.72037]
[1722371571167,0.55,3273.8,3273.1,0.772037]
[1722371571464,0.4943518,3273.7,3273.0,6.8]
[1722371571664,2.78029249,3274.0,3273.0,6.8]
[1722371571867,0.4943971,3273.9,3273.0,6.8]
[1722371572021,1.0443971,3273.8,3273.0,6.8]
[1722371572222,0.55,3273.8,3272.8,2.4037]
[1722371572453,0.49434976,3273.7,3272.8,2.64407]
[1722371572656,2.77619179,3274.0,3272.8,2.64407]
[1722371572919,0.49429619,3273.9,3272.8,2.64407]
[1722371573124,1.04431344,3273.8,3272.8,2.64407]
[1722371573336,0.55,3273.8,3272.9,0.264407]
[1722371573623,0.55,3274.0,3272.9,0.264407]
[1722371573827,0.55,3274.0,3272.8,2.4037]
[1722371573828,0.49430615,3273.9,3272.8,2.4037]
[1722371574044,1.04433602,3273.8,3272.8,2.4037]
[1722371574366,0.55,3273.8,3272.8,2.4037]
[1722371574583,0.55,3274.0,3272.8,2.4037]
[1722371574861,0.55,3274.0,3272.8,2.64407]
[1722371575071,3.60436,3274.0,3272.8,2.64407]
[1722371575421,3.54874173,3273.9,3272.8,2.4037]
[1722371575622,0.55,3273.8,3272.8,2.4037]
[1722371576124,0.55,3273.9,3272.8,2.4037]
[1722371576433,0.55,3273.9,3272.8,2.64407]
[1722371576636,0.55,3274.0,3272.8,2.64407]
[1722371577940,3.60441,3274.0,3272.8,2.64407]
[1722371578143,3.05446,3273.9,3272.8,2.4037]
[1722371578461,0.55,3273.8,3272.8,2.4037]
[1722371580452,0.55,3274.0,3272.8,2.4037]
[1722371580654,3.55,3274.0,3272.8,2.4037]
[1722371580903,3.05446,3273.9,3272.8,2.4037]
[1722371581175,3.60461,3273.8,3272.8,2.4037]
[1722371581379,0.55,3273.8,3272.8,2.4037]
[1722371581577,0.55,3273.9,3272.9,0.24037]
[1722371581795,7.70981114,3274.1,3272.9,0.30147311]
[1722371582011,7.39,3274.1,3273.0,2.356]
[1722371582281,7.39,3274.1,3273.1,0.06109526]
[1722371582482,7.39,3274.1,3273.1,35.06109526]
[1722371582680,7.39,3274.1,3273.2,3.04901288]
[1722371582984,7.39,3274.5,3273.2,3.04901288]
[1722371583129,3.0,3274.4,3273.0,2.356]
[1722371583334,3.05419,3274.2,3273.0,2.356]
[1722371583567,0.55,3274.1,3273.0,2.356]
[1722371583965,3.05438,3274.0,3273.0,2.356]
[1722371584281,0.55,3273.9,3273.0,2.356]
[1722371584448,0.55,3273.9,3273.0,3.295637]
[1722371584676,0.55,3274.1,3273.0,3.295637]
[1722371584856,3.0,3274.2,3273.0,3.35674172]
[1722371585056,0.31976816,3274.4,3273.2,2.3835]
[1722371585254,7.39,3274.8,3273.3,0.06108961]
[1722371585563,7.39,3274.8,3273.4,35.0]
[1722371586070,7.70959754,3274.8,3273.2,5.3835]
[1722371586271,3.0,3274.7,3273.3,0.57432112]
[1722371586504,7.39,3274.8,3273.4,2.3382]
[1722371586806,7.39,3274.8,3273.5,2.3382]
[1722371587500,7.39,3274.8,3273.6,35.0]
[1722371587714,7.39,3274.8,3273.7,5.3681]
[1722371587996,7.39,3274.8,3273.8,3.11009127]
[1722371588208,7.39,3275.5,3274.0,2.3681]
[1722371588391,7.39,3275.5,3274.1,0.06107616]
[1722371588581,3.0,3275.4,3274.1,0.06107616]
[1722371588761,6.05307,3275.4,3274.1,0.06107616]
[1722371588954,3.0,3275.4,3274.0,2.3681]
[1722371589159,3.0,3275.4,3274.1,0.06108083]
[1722371589712,0.55,3275.3,3274.1,0.06108083]
[1722371590301,0.55,3275.4,3274.1,0.06108083]
[1722371590507,0.55,3275.4,3274.2,0.24291808]
[1722371593015,3.60311,3275.4,3274.2,0.24291808]
[1722371593328,0.49516083,3275.3,3274.2,0.24291808]
[1722371593477,3.135,3275.4,3274.2,0.24291808]
[1722371593478,0.55,3275.2,3274.2,0.24291808]
[1722371593816,3.135,3275.4,3274.3,0.32429181]
[1722371594174,0.49513232,3275.3,3274.3,0.32429181]
[1722371594370,3.135,3275.4,3274.3,0.32429181]
[1722371594371,0.55,3275.2,3274.3,0.32429181]
[1722371594575,3.135,3275.4,3274.3,0.32429181]
[1722371594778,0.49512539,3275.3,3274.3,0.32429181]
[1722371595013,0.55,3275.2,3274.3,0.32429181]
[1722371595328,0.55,3275.2,3274.4,2.4937]
[1722371595480,0.55,3275.4,3274.5,0.28790712]
[1722371595675,0.49518735,3275.3,3274.5,0.28790712]
[1722371595990,0.55,3275.2,3274.5,0.28790712]
[1722371596192,0.55,3275.4,3274.4,2.4937]
[1722371596394,0.95599543,3275.3,3274.4,2.4937]
[1722371596613,1.04521726,3275.2,3274.4,2.4937]
[1722371596821,0.49521726,3275.1,3274.4,2.4937]
[1722371596979,0.55,3275.2,3274.4,2.4937]
[1722371597301,0.49530449,3275.1,3274.4,2.74307]
[1722371597501,0.55,3275.3,3274.4,2.74307]
[1722371597720,0.49532727,3275.2,3274.4,2.74307]
[1722371597901,1.04532727,3275.1,3274.4,2.4937]
[1722371598229,0.49532727,3275.0,3274.4,2.4937]
[1722371598374,2.77879435,3275.4,3274.4,2.4937]
[1722371598375,0.55,3275.4,3274.4,2.4937]
[1722371598733,0.49523411,3275.3,3274.4,2.4937]
[1722371598878,1.04523411,3275.2,3274.4,2.4937]
[1722371599072,2.77879435,3275.4,3274.4,2.4937]
[1722371599073,1.04523411,3275.1,3274.4,2.4937]
[1722371599376,0.49523411,3275.0,3274.4,2.4937]
[1722371599570,1.04523411,3274.9,3274.4,2.4937]
[1722371599806,0.31954822,3275.3,3274.4,2.4937]
[1722371600004,7.39,3275.5,3274.4,2.74307]
[1722371600005,0.49530737,3275.2,3274.4,2.74307]
[1722371600242,1.04530737,3275.1,3274.4,2.74307]
[1722371600445,0.49530737,3275.0,3274.4,2.74307]
[1722371601927,0.49530737,3275.0,3274.0,2.3523]
[1722371602129,1.01079395,3274.9,3274.0,2.3523]
[1722371602380,1.91241784,3274.6,3274.0,2.3523]
[1722371602680,1.91241784,3274.7,3274.0,2.3523]
[1722371602827,0.55,3274.6,3274.0,2.3523]
[1722371603165,0.55,3274.6,3274.0,2.58753]
[1722371603366,1.91284968,3274.7,3274.0,2.58753]
[1722371603581,1.91284968,3274.8,3274.0,2.58753]
[1722371603739,1.91284968,3274.8,3274.1,0.06107851]
[1722371603941,7.39,3274.9,3274.2,2.3693]
[1722371604143,7.39,3274.9,3274.3,0.23693]
[1722371604473,2.40800768,3274.8,3274.3,0.23693]
[1722371604668,0.4951128,3274.7,3274.3,0.23693]
[1722371604867,1.91284968,3274.8,3274.3,0.23693]
[1722371605067,7.39,3274.9,3274.4,2.3693]
[1722371605240,7.39,3274.9,3274.5,0.32780061]
[1722371606096,7.39,3274.9,3274.6,2.3693]
[1722371606299,7.39,3274.9,3274.8,2.3693]
[1722371606501,10.8946457,3276.1,3274.8,2.3693]
[1722371606731,1.91166557,3275.4,3274.8,2.3693]
[1722371606999,1.91166557,3275.4,3274.9,0.23693]
[1722371607296,1.91166557,3275.4,3274.8,2.3693]
[1722371607459,1.91166557,3275.3,3274.8,2.3693]
[1722371607781,2.40662587,3275.2,3274.8,2.3693]
[1722371607981,1.91166557,3275.2,3274.8,2.3693]
[1722371608179,1.91166557,3275.1,3274.8,2.3693]
[1722371608553,2.2302765,3275.4,3274.8,2.3693]
[1722371608554,1.91166557,3275.0,3274.8,2.3693]
[1722371609804,2.63451412,3275.6,3274.3,2.2964]
[1722371609805,3.05293,3275.6,3274.3,2.2964]
[1722371610009,1.91041057,3274.9,3274.3,2.2964]
[1722371610194,1.91041057,3274.8,3274.3,2.2964]
[1722371610358,1.91041057,3274.8,3274.4,0.90964]
[1722371611400,1.91041057,3274.8,3274.3,2.2964]
[1722371611710,1.91041057,3274.9,3274.3,2.2964]
[1722371611859,1.91041057,3275.0,3274.3,2.2964]
[1722371612058,1.91041057,3275.0,3274.4,0.90964]
[1722371612759,1.91041057,3274.8,3274.4,0.90964]
[1722371613062,7.94,3275.5,3274.3,2.2964]
[1722371613302,1.91087958,3275.1,3274.3,2.2964]
[1722371613609,1.91087958,3275.0,3274.3,2.2964]
[1722371613774,1.91087958,3275.1,3274.4,0.2357476]
[1722371613977,1.91087958,3275.0,3274.3,2.2964]
[1722371614176,1.91087958,3275.0,3274.4,0.06107588]
[1722371614518,1.91087958,3274.8,3273.9,3.0]
[1722371614717,2.40561112,3274.7,3273.9,3.0]
[1722371615005,1.91087958,3274.6,3274.0,1.21062]
[1722371615215,1.91087958,3274.7,3274.0,1.21062]
[1722371615518,1.91087958,3274.7,3274.1,0.421062]
[1722371615803,1.91087958,3274.8,3274.2,2.3766]
[1722371616389,1.91032715,3274.8,3274.2,2.3766]
[1722371616591,1.91032715,3274.7,3274.3,0.2797662]
[1722371616830,1.91032715,3274.8,3274.2,2.3766]
[1722371617133,1.91032715,3274.8,3274.2,2.368]
[1722371617309,1.91032715,3274.9,3274.2,2.368]
[1722371617682,1.91032715,3274.8,3274.2,2.368]
[1722371617880,1.91032715,3274.9,3274.2,2.7679682]
[1722371618588,1.91032715,3275.0,3274.2,2.7679682]
[1722371618822,1.91032715,3275.0,3274.2,0.3999682]
[1722371619058,1.91032715,3275.0,3274.1,0.421062]
[1722371619059,1.91032715,3274.5,3273.3,12.13]
[1722371619318,1.91032715,3274.3,3272.9,6.8]
[1722371619521,2.25966138,3274.2,3273.0,0.68]
[1722371619821,1.91073126,3274.1,3273.0,0.68]
[1722371620220,1.91073126,3274.1,3273.1,2.3064]
[1722371620523,2.25994949,3274.0,3273.1,2.3064]
[1722371620677,1.91073126,3274.0,3273.1,8.35541288]
[1722371621101,1.91073126,3274.1,3273.1,8.35541288]
[1722371621422,2.25980958,3274.0,3273.1,8.35541288]
[1722371621625,1.91073126,3274.0,3273.2,0.90354129]
[1722371621926,2.25980705,3273.9,3273.2,3.90354129]
[1722371622089,2.2598045,3273.8,3273.1,2.3064]
[1722371622287,0.34910166,3273.7,3273.1,2.3064]
[1722371622523,2.25983292,3273.6,3273.1,2.3064]
[1722371622817,3.1188294,3274.5,3273.1,2.3064]
[1722371622979,1.91093716,3273.5,3273.1,2.3064]
[1722371623174,1.91093716,3273.5,3273.1,3.21704]
[1722371623524,2.25999615,3273.4,3272.6,2.4385]
[1722371623819,2.25995511,3273.3,3272.6,2.4385]
[1722371623973,2.25995511,3273.2,3272.6,2.4385]
[1722371624174,1.91093716,3273.3,3272.6,2.4385]
[1722371624418,1.91093716,3273.4,3272.6,2.4385]
[1722371624729,2.25999114,3273.3,3272.6,5.48751288]
[1722371625020,6.05434,3274.1,3272.6,8.48751288]
[1722371625326,6.05434,3274.1,3272.7,4.11375129]
[1722371625327,1.9105823,3273.4,3272.7,4.11375129]
[1722371625472,1.9105823,3273.5,3272.7,4.11375129]
[1722371626049,3.0,3274.1,3272.7,4.11375129]
[1722371626050,0.3487967,3273.4,3272.7,4.11375129]
[1722371626256,1.91071263,3273.5,3272.7,2.585]
[1722371626545,2.25959765,3273.4,3272.7,2.585]
[1722371626717,1.91071263,3273.5,3272.7,2.585]
[1722371626905,1.91071263,3273.5,3272.8,0.80235]
[1722371627105,1.91071263,3273.6,3272.8,0.80235]
[1722371627348,1.91071263,3273.7,3272.8,0.80235]
[1722371628151,1.91071263,3273.5,3273.1,2.585]
[1722371628363,7.39,3274.2,3273.3,2.3498]
[1722371628654,1.9106488,3274.0,3273.4,0.06109075]
[1722371628825,1.9106488,3274.1,3273.3,2.3498]
[1722371629023,2.11451928,3274.0,3273.4,3.11010047]
[1722371629347,1.9106488,3274.2,3273.5,2.585]
[1722371629549,1.9110554,3274.1,3273.6,0.06108742]
[1722371629788,1.9110554,3274.1,3273.7,0.26460874]
[1722371629960,1.9110554,3274.2,3273.7,0.26460874]
[1722371630467,0.46043681,3274.4,3273.7,0.26460874]
[1722371630468,1.9110554,3274.3,3273.7,0.26460874]
[1722371630752,2.37149221,3274.4,3273.7,0.26460874]
[1722371630957,1.9110554,3274.2,3273.7,0.26460874]
[1722371631389,1.9110554,3274.1,3273.4,3.04901288]
[1722371631736,2.69000144,3274.4,3273.4,3.04901288]
[1722371631737,1.9110554,3274.2,3273.4,3.04901288]
[1722371631952,1.9110554,3274.3,3273.5,2.585]
[1722371632383,1.9110554,3274.2,3273.5,2.585]
[1722371632542,1.9110554,3274.2,3273.6,0.56340129]
[1722371632742,0.46043681,3274.4,3273.9,2.585]
[1722371632973,0.46043681,3274.4,3274.0,0.06107641]
[1722371633483,1.91167039,3274.5,3273.9,2.585]
[1722371633891,1.91167039,3274.7,3273.9,2.585]
[1722371634044,1.91167039,3274.5,3274.0,0.2585]
[1722371634243,1.91167039,3274.6,3274.0,0.2585]
[1722371634479,2.11569422,3274.5,3274.0,0.2585]
[1722371634789,1.91167039,3274.6,3274.0,0.2585]
[1722371635094,1.91167039,3274.5,3274.0,0.2585]
[1722371635250,2.11566739,3274.4,3273.8,3.0]
[1722371635449,1.91167039,3274.4,3273.7,5.3577]
[1722371635797,1.91167039,3274.4,3273.8,1.27211013]
[1722371635944,1.91187066,3274.4,3273.8,4.27211013]
[1722371637432,2.1159123,3274.3,3273.8,3.0]
[1722371637708,1.91187066,3274.2,3273.7,5.3577]
[1722371638004,1.91187066,3274.1,3273.7,5.3577]
[1722371638202,1.91187066,3274.2,3273.7,6.83197]
[1722371638373,1.91187066,3274.2,3273.7,5.3577]
[1722371638777,1.91187066,3274.3,3273.7,5.3577]
[1722371639181,0.20394826,3274.2,3273.7,5.3577]
[1722371639376,3.05317,3275.3,3273.7,5.3577]
[1722371639377,1.91220622,3274.1,3273.7,5.3577]
[1722371640785,1.91220622,3274.3,3273.7,6.83197]
[1722371641113,1.91220622,3274.3,3273.7,5.3577]
[1722371641319,1.91220622,3274.4,3273.7,5.3577]
[1722371641472,2.11622457,3274.3,3273.7,5.3577]
[1722371641674,1.91316739,3274.2,3273.7,2.3577]
[1722371641893,1.91316739,3274.0,3273.7,2.3577]
[1722371642088,1.91348237,3274.0,3273.7,2.3577]
[1722371643090,1.91348237,3273.9,3273.7,2.3577]
[1722371643292,1.91348237,3274.0,3273.7,2.3577]
[1722371643689,1.91348237,3273.9,3273.7,2.3577]
[1722371643894,1.91342738,3274.0,3273.7,2.3577]
[1722371644493,1.91342738,3274.2,3273.7,2.3577]
[1722371644913,5.5115294,3275.1,3273.7,2.3577]
[1722371645112,1.91355749,3274.1,3273.7,2.3577]
[1722371645424,11.14407642,3275.0,3273.8,35.0]
[1722371645425,1.91355749,3274.3,3273.8,35.0]
[1722371645921,1.91355749,3274.4,3273.9,0.0610808]
[1722371646293,1.91355749,3274.5,3273.9,0.0610808]
[1722371646493,1.91355749,3274.5,3273.7,37.3577]
[1722371646701,1.91355749,3274.5,3273.8,3.04901288]
[1722371647033,1.91355749,3274.6,3273.9,2.64607703]
[1722371647326,1.91355749,3274.8,3274.0,5.4237]
[1722371647520,0.4521957,3275.3,3274.1,0.86805164]
[1722371647521,1.91355749,3274.9,3274.1,0.86805164]
[1722371647733,1.91355749,3274.7,3274.1,0.86805164]
[1722371648083,0.4521957,3275.3,3274.1,0.86805164]
[1722371648290,1.91261229,3274.8,3274.2,0.2]
[1722371648489,2.11669632,3274.7,3274.2,0.2]
[1722371648699,0.55,3275.2,3274.2,0.2]
[1722371648700,1.91261229,3274.6,3274.2,0.2]
[1722371649735,1.91261229,3274.6,3274.2,0.76237]
[1722371649928,3.18581881,3275.2,3274.2,0.76237]
[1722371649929,1.91261229,3274.7,3274.2,0.76237]
[1722371650260,2.1167959,3274.6,3274.2,0.2]
[1722371650551,1.91261229,3274.6,3274.2,0.2]
[1722371651403,0.55,3275.2,3274.2,0.2]
[1722371651605,1.91271208,3274.6,3274.2,0.2]
[1722371651917,1.91271208,3274.7,3274.3,0.06107512]
[1722371652299,1.91271208,3274.9,3274.4,2.2868]
[1722371652540,1.91271208,3275.0,3274.5,0.0610683]
[1722371653961,1.91271208,3275.1,3274.8,2.3933]
[1722371654101,1.91271208,3275.5,3274.9,0.55889216]
[1722371654299,1.91271208,3275.6,3274.9,0.55889216]
[1722371654501,1.91271208,3275.7,3274.9,3.55889216]
[1722371654756,7.39,3276.2,3275.0,0.89521922]
[1722371654757,1.91283935,3275.8,3275.0,0.89521922]
[1722371654899,1.91283935,3275.8,3275.1,0.06105738]
[1722371655102,1.91283935,3275.8,3275.0,0.89521922]
[1722371655103,1.91283935,3275.7,3275.2,2.3933]